bitfinex-derivatives/quotes_BTCF0:USTF0_20251217
["timestamp","ask_amount","ask_price","bid_price","bid_amount"]
[1765949814506,0.51156165,86362.0,86361.0,0.69107]
[1765949814909,0.51056165,86362.0,86361.0,0.69107]
[1765949815205,1.18534165,86362.0,86361.0,0.69107]
[1765949815596,1.18634165,86362.0,86361.0,0.69107]
[1765949816607,1.18534165,86362.0,86361.0,0.69107]
[1765949817308,0.67478,86356.0,86355.0,1.05187]
[1765949818403,0.67478,86356.0,86355.0,1.05287]
[1765949818993,0.32829,86356.0,86355.0,1.05287]
[1765949819398,0.67478,86356.0,86355.0,1.05287]
[1765949821711,0.70370724,86356.0,86355.0,1.05287]
[1765949823007,0.70370724,86356.0,86355.0,0.3618]
[1765949823915,0.70370724,86356.0,86355.0,0.001]
[1765949826414,1.12615061,86356.0,86355.0,0.32594]
[1765949826615,1.79118724,86356.0,86355.0,0.68493]
[1765949827709,1.79118724,86356.0,86355.0,0.32594]
[1765949827911,1.79118724,86356.0,86355.0,0.001]
[1765949831424,1.85283061,86356.0,86355.0,0.001]
[1765949831820,1.85283061,86356.0,86355.0,0.68493]
[1765949832021,1.79118724,86356.0,86355.0,0.68493]
[1765949832224,1.06450724,86356.0,86355.0,0.68493]
[1765949832418,1.79122724,86356.0,86355.0,0.001]
[1765949834519,1.85287061,86356.0,86355.0,0.001]
[1765949834919,1.79122724,86356.0,86355.0,0.001]
[1765949836228,0.70201,86354.0,86353.0,0.00017369]
[1765949836425,0.70201,86339.0,86338.0,0.00246359]
[1765949836730,1.45765724,86339.0,86338.0,0.00246359]
[1765949837926,1.45765724,86339.0,86338.0,0.68639359]
[1765949838130,1.45765724,86339.0,86338.0,0.00246359]
[1765949838330,1.45765724,86339.0,86338.0,0.00346359]
[1765949839026,1.45765724,86339.0,86338.0,0.00446359]
[1765949839215,0.90345,86331.0,86330.0,0.00011624]
[1765949839415,1.65913724,86331.0,86330.0,0.00011624]
[1765949839728,1.45769724,86331.0,86330.0,0.68404624]
[1765949840316,1.45779986,86331.0,86330.0,0.68404624]
[1765949840725,0.75578986,86331.0,86330.0,0.68604624]
[1765949840916,0.00010262,86331.0,86330.0,0.68604624]
[1765949841225,0.00010262,86331.0,86330.0,0.68804624]
[1765949850935,0.20144,86387.0,86330.0,0.68804624]
[1765949850936,0.71864,86351.0,86346.0,0.68393]
[1765949851235,0.40178671,86347.0,86346.0,0.68393]
[1765949851435,0.37355188,86347.0,86346.0,0.68393]
[1765949851622,0.02927188,86347.0,86346.0,0.68393]
[1765949851829,0.0293408,86347.0,86346.0,0.68393]
[1765949853237,0.0303408,86347.0,86346.0,0.68393]
[1765949854239,0.00124261,86347.0,86346.0,0.68393]
[1765949855435,0.94226597,86366.0,86365.0,0.69688]
[1765949855624,0.94226597,86366.0,86354.0,0.69688]
[1765949855625,0.67919,86355.0,86354.0,0.69688]
[1765949855828,0.70830688,86355.0,86354.0,0.69688]
[1765949856732,0.71030688,86355.0,86354.0,0.69688]
[1765949857741,0.71130688,86355.0,86354.0,0.69688]
[1765949858443,0.71030688,86355.0,86354.0,0.69688]
[1765949858640,0.71130688,86355.0,86354.0,0.69688]
[1765949858837,0.71130688,86355.0,86346.0,0.66719369]
[1765949858838,0.67166,86347.0,86346.0,0.66719369]
[1765949859147,0.70077688,86347.0,86346.0,0.00017369]
[1765949861431,0.72950398,86347.0,86346.0,0.00017369]
[1765949862043,0.79113995,86347.0,86346.0,0.00017369]
[1765949862642,0.10833,86338.0,86324.0,1.22934]
[1765949862848,0.67166,86311.0,86310.0,0.86854]
[1765949863035,0.67166,86304.0,86303.0,0.86854]
[1765949863238,0.70077688,86304.0,86303.0,0.86854]
[1765949863436,0.67166,86299.0,86298.0,0.66933756]
[1765949863632,1.78829688,86299.0,86298.0,0.00231756]
[1765949864032,2.14909688,86299.0,86298.0,0.00231756]
[1765949864550,1.42237688,86299.0,86298.0,0.33992756]
[1765949864749,2.14913688,86299.0,86298.0,0.67033756]
[1765949866040,1.42237688,86299.0,86298.0,0.67033756]
[1765949866244,2.14917688,86299.0,86298.0,0.67033756]
[1765949868549,2.14917688,86299.0,86298.0,0.00331756]
[1765949869736,2.14917688,86299.0,86298.0,0.67033756]
[1765949869737,1.42237688,86299.0,86298.0,0.67033756]
[1765949869940,2.14929688,86299.0,86298.0,0.67033756]
[1765949870145,2.14929688,86299.0,86298.0,0.34092756]
[1765949870451,2.14929688,86299.0,86298.0,0.00331756]
[1765949871040,1.42237688,86299.0,86298.0,0.67033756]
[1765949871239,2.14933688,86299.0,86298.0,0.67033756]
[1765949872245,2.14933688,86299.0,86298.0,0.00331756]
[1765949873645,2.12022,86299.0,86298.0,0.00331756]
[1765949874446,2.12022,86299.0,86284.0,9.001e-05]
[1765949874447,0.67166,86285.0,86284.0,0.33770001]
[1765949874651,1.75946,86285.0,86284.0,0.66711001]
[1765949875557,1.75946,86285.0,86284.0,0.67011001]
[1765949875750,1.75946,86285.0,86284.0,0.67211001]
[1765949877155,1.03246,86285.0,86284.0,0.67211001]
[1765949877342,1.7595,86285.0,86284.0,0.67211001]
[1765949877545,2.1203,86285.0,86284.0,0.67211001]
[1765949877847,1.44864,86285.0,86284.0,0.67111001]
[1765949878156,1.44864,86285.0,86284.0,0.68270211]
[1765949878354,0.7216,86285.0,86284.0,0.67970211]
[1765949878549,1.44864,86285.0,86284.0,0.66911001]
[1765949879441,0.0001738,86293.0,86292.0,0.66702]
[1765949879753,0.0001738,86293.0,86292.0,1.0394111]
[1765949880053,0.6718338,86293.0,86292.0,1.02782]
[1765949880448,0.67166,86286.0,86285.0,1.02782]
[1765949880769,1.39874,86286.0,86285.0,1.02782]
[1765949880941,0.67166,86285.0,86284.0,0.00109001]
[1765949881143,1.39874,86285.0,86284.0,0.66811001]
[1765949881340,1.03246,86292.0,86291.0,0.66702]
[1765949881552,0.32678,86292.0,86291.0,0.66702]
[1765949881753,1.05398,86292.0,86291.0,0.66702]
[1765949882157,0.0001738,86293.0,86292.0,0.6786111]
[1765949882748,0.0001738,86293.0,86292.0,1.0394111]
[1765949884448,0.3269538,86293.0,86292.0,1.02782]
[1765949884648,0.6673038,86293.0,86292.0,0.66702]
[1765949885357,0.3269538,86293.0,86292.0,0.66702]
[1765949885547,0.7273738,86293.0,86292.0,1.02782]
[1765949885743,0.0001738,86293.0,86292.0,1.02782]
[1765949889162,0.66489,86311.0,86310.0,0.65204]
[1765949889356,0.02864541,86311.0,86310.0,1.01284]
[1765949889549,0.3608,86321.0,86320.0,0.77025]
[1765949889754,0.38945095,86321.0,86320.0,0.77025]
[1765949890259,0.02865095,86321.0,86320.0,0.77025]
[1765949890761,0.35519095,86321.0,86320.0,0.7818373]
[1765949891258,0.03065095,86321.0,86320.0,0.7818373]
[1765949891760,0.69554095,86321.0,86320.0,0.7818373]
[1765949891957,0.69654095,86321.0,86320.0,0.7818373]
[1765949892152,0.03165095,86321.0,86320.0,0.7818373]
[1765949892758,0.00712155,86321.0,86320.0,0.7818373]
[1765949893155,0.002,86321.0,86320.0,0.7818373]
[1765949893560,0.66689,86321.0,86320.0,0.6636273]
[1765949893856,0.7272538,86329.0,86328.0,0.8770762]
[1765949894055,0.7272538,86329.0,86328.0,1.2378762]
[1765949894254,0.0001738,86329.0,86328.0,1.2378762]
[1765949895065,0.00231649,86338.0,86337.0,0.663625]
[1765949895952,0.00231649,86338.0,86336.0,0.21345]
[1765949895953,0.66489,86350.0,86349.0,0.65204]
[1765949896154,1.39201,86350.0,86349.0,0.65204]
[1765949896666,0.66489,86350.0,86349.0,0.65204]
[1765949896861,0.66489,86346.0,86345.0,0.3608]
[1765949897069,0.66489,86342.0,86341.0,0.6522138]
[1765949897655,0.002,86350.0,86349.0,0.65204]
[1765949897860,1.02569,86356.0,86355.0,0.65204]
[1765949898060,1.59021,86356.0,86355.0,0.65204]
[1765949898568,1.75281,86356.0,86355.0,0.65204]
[1765949898768,1.39201,86356.0,86355.0,0.65204]
[1765949898965,1.39401,86356.0,86355.0,0.65204]
[1765949899859,0.66489,86348.0,86347.0,1.01284]
[1765949900562,0.66489,86342.0,86341.0,0.6522138]
[1765949901866,0.66689,86342.0,86341.0,0.6522138]
[1765949902059,0.66789,86342.0,86341.0,0.6522138]
[1765949902766,0.003,86342.0,86341.0,0.6522138]
[1765949903281,0.3247138,86358.0,86357.0,0.65204]
[1765949903469,0.0001738,86358.0,86357.0,0.65204]
[1765949904274,0.6650638,86358.0,86357.0,0.65204]
[1765949904577,0.6660638,86358.0,86357.0,0.65204]
[1765949904953,0.0001738,86358.0,86357.0,0.65204]
[1765949905156,0.68534,86375.0,86374.0,0.65204]
[1765949905353,1.57624984,86375.0,86374.0,0.65204]
[1765949905565,0.66489,86367.0,86366.0,1.01284]
[1765949906469,0.0001737,86375.0,86374.0,0.65204]
[1765949906660,0.3247137,86375.0,86374.0,0.65204]
[1765949906969,0.6650637,86375.0,86374.0,0.65204]
[1765949907472,0.66489,86367.0,86366.0,1.01284]
[1765949907674,0.6650637,86375.0,86374.0,0.65204]
[1765949908062,0.6650637,86375.0,86368.0,0.65204]
[1765949908063,0.66489,86369.0,86368.0,0.65204]
[1765949910059,0.66489,86369.0,86368.0,0.86549]
[1765949910473,0.66589,86369.0,86368.0,0.86549]
[1765949910667,0.66689,86369.0,86368.0,0.86549]
[1765949913375,0.66589,86369.0,86368.0,0.86549]
[1765949914074,0.32554,86369.0,86368.0,0.86549]
[1765949914278,0.002,86369.0,86368.0,0.86549]
[1765949915565,0.6837,86369.0,86368.0,0.86549]
[1765949916067,0.6827,86369.0,86368.0,0.86549]
[1765949916279,0.6817,86369.0,86368.0,0.86549]
[1765949916473,0.6827,86369.0,86368.0,0.86549]
[1765949917381,0.7118777,86369.0,86366.0,0.3608]
[1765949917679,0.67463,86367.0,86366.0,0.3608]
[1765949917975,0.7028077,86367.0,86366.0,0.3608]
[1765949918171,0.7028077,86367.0,86366.0,1.01332]
[1765949918569,0.0281777,86367.0,86366.0,1.01332]
[1765949918872,0.002,86369.0,86368.0,0.85386]
[1765949919270,0.02920012,86369.0,86368.0,0.85386]
[1765949919470,0.03020012,86369.0,86368.0,0.85386]
[1765949919781,0.02920012,86369.0,86368.0,0.85386]
[1765949919976,0.02820012,86369.0,86368.0,0.85386]
[1765949920181,0.67463,86369.0,86368.0,0.65252]
[1765949920378,0.70283012,86369.0,86368.0,0.65252]
[1765949920578,0.67463,86367.0,86366.0,0.3608]
[1765949920877,0.70283012,86367.0,86366.0,0.3608]
[1765949921080,0.70283012,86367.0,86366.0,0.68899]
[1765949921669,0.70283012,86367.0,86366.0,0.3608]
[1765949922274,0.67463,86359.0,86351.0,0.3608]
[1765949922485,1.42939012,86359.0,86351.0,0.3608]
[1765949922672,1.42939012,86359.0,86358.0,0.3283637]
[1765949922873,0.02820012,86359.0,86358.0,0.6526937]
[1765949923772,0.02820012,86359.0,86358.0,1.0134937]
[1765949924083,0.03020012,86359.0,86358.0,1.0134937]
[1765949924280,0.03220012,86359.0,86358.0,1.0134937]
[1765949925476,0.36407012,86359.0,86358.0,1.0134937]
[1765949925672,0.03120012,86359.0,86358.0,1.0134937]
[1765949926072,0.02920012,86359.0,86358.0,1.0134937]
[1765949926473,0.36107012,86359.0,86358.0,1.0134937]
[1765949926672,0.70483012,86359.0,86358.0,1.0134937]
[1765949927183,0.70383012,86359.0,86358.0,1.0134937]
[1765949928077,0.70383012,86359.0,86358.0,0.3609737]
[1765949928790,0.70483012,86359.0,86358.0,1.0134937]
[1765949928974,0.36207012,86359.0,86358.0,1.0134937]
[1765949929277,0.70383012,86359.0,86358.0,1.0134937]
[1765949929484,0.70583012,86359.0,86358.0,1.0134937]
[1765949929983,0.70383012,86359.0,86358.0,1.0134937]
[1765949930285,0.70683012,86359.0,86358.0,1.0134937]
[1765949931084,0.03220012,86359.0,86358.0,1.0134937]
[1765949932586,0.02920012,86359.0,86358.0,1.0134937]
[1765949932779,0.70483012,86359.0,86358.0,1.0134937]
[1765949935087,0.76667254,86359.0,86358.0,1.0134937]
[1765949936392,0.42391254,86359.0,86358.0,1.0134937]
[1765949936783,0.70483012,86359.0,86358.0,1.0134937]
[1765949938989,0.03020012,86359.0,86358.0,1.0134937]
[1765949939988,0.02920012,86359.0,86358.0,1.0134937]
[1765949940294,0.00415144,86359.0,86358.0,1.0134937]
[1765949940684,1.44e-06,86359.0,86358.0,1.0134937]
[1765949941088,1.18699,86374.0,86373.0,0.65252]
[1765949941389,1.18699,86374.0,86373.0,1.21466]
[1765949941596,0.0001737,86375.0,86374.0,0.65252]
[1765949941796,0.6748037,86375.0,86374.0,0.65252]
[1765949942792,0.6758037,86375.0,86374.0,0.65252]
[1765949943590,0.0011737,86375.0,86374.0,0.65252]
[1765949943985,0.0021737,86375.0,86374.0,0.65252]
[1765949944796,0.00202513,86378.0,86377.0,0.68536]
[1765949945096,0.68775,86392.0,86391.0,0.68536]
[1765949945287,0.68775,86395.0,86394.0,0.88029]
[1765949945491,0.68775,86395.0,86394.0,0.68536]
[1765949946797,0.68775,86390.0,86389.0,1.04616]
[1765949947690,0.68775,86390.0,86389.0,0.3608]
[1765949947886,0.68775,86390.0,86389.0,1.04616]
[1765949948300,0.68875,86390.0,86389.0,1.04616]
[1765949949495,0.68975,86390.0,86389.0,1.04616]
[1765949952001,0.68875,86390.0,86389.0,1.04616]
[1765949952302,0.68975,86390.0,86389.0,1.04616]
[1765949953099,0.68975,86390.0,86389.0,0.3608]
[1765949953301,0.68975,86390.0,86386.0,0.0001737]
[1765949953302,0.88718,86387.0,86386.0,0.0001737]
[1765949954201,1.61354,86387.0,86386.0,0.0001737]
[1765949954595,1.61354,86387.0,86386.0,0.3531137]
[1765949954898,1.61554,86387.0,86386.0,0.3531137]
[1765949955302,1.61754,86387.0,86386.0,0.3531137]
[1765949955506,1.61754,86387.0,86386.0,0.0001737]
[1765949956698,1.41711,86387.0,86386.0,0.6855337]
[1765949957104,1.41511,86387.0,86386.0,0.6855337]
[1765949957296,1.41811,86387.0,86386.0,0.6855337]
[1765949958004,1.41411,86387.0,86386.0,0.6855337]
[1765949959093,1.41511,86387.0,86386.0,0.6855337]
[1765949959506,0.001,86387.0,86386.0,0.6855337]
[1765949960204,0.002,86387.0,86386.0,0.6855337]
[1765949960397,0.001,86387.0,86386.0,0.6855337]
[1765949960599,0.002,86387.0,86386.0,0.6855337]
[1765949960810,0.001,86387.0,86386.0,0.6855337]
[1765949961302,0.72632,86388.0,86387.0,0.8918683]
[1765949961504,0.47261724,86400.0,86399.0,0.68536]
[1765949961699,1.4710035,86400.0,86399.0,0.68536]
[1765949963512,1.4730035,86400.0,86399.0,0.68536]
[1765949964213,1.4750035,86400.0,86399.0,0.68536]
[1765949965513,1.4750035,86400.0,86399.0,0.35294]
[1765949967710,0.68775,86392.0,86391.0,1.04616]
[1765949967910,1.44168978,86392.0,86391.0,0.68536]
[1765949969316,1.44268978,86392.0,86391.0,0.68536]
[1765949969716,1.44168978,86392.0,86391.0,0.68536]
[1765949969916,1.44268978,86392.0,86391.0,0.68536]
[1765949970212,1.44368978,86392.0,86391.0,0.68536]
[1765949973009,1.44168978,86392.0,86391.0,0.68536]
[1765949973210,1.44368978,86392.0,86391.0,0.68536]
[1765949973611,1.44268978,86392.0,86391.0,0.68536]
[1765949973810,1.44368978,86392.0,86391.0,0.68536]
[1765949974221,1.44268978,86392.0,86391.0,0.68536]
[1765949974418,1.44368978,86392.0,86391.0,0.68536]
[1765949975406,1.09366978,86392.0,86391.0,0.68536]
[1765949975613,1.09266978,86392.0,86391.0,0.68536]
[1765949975816,1.09366978,86392.0,86391.0,0.68536]
[1765949976113,1.09266978,86392.0,86391.0,0.68536]
[1765949976314,1.09366978,86392.0,86391.0,0.68536]
[1765949977022,1.09266978,86392.0,86391.0,0.68536]
[1765949977213,1.09366978,86392.0,86391.0,0.68536]
[1765949979209,0.69511,86391.0,86390.0,0.3608]
[1765949979415,0.72280978,86391.0,86390.0,0.3608]
[1765949979717,0.72280978,86391.0,86390.0,0.71337]
[1765949979914,0.72280978,86391.0,86390.0,1.0403]
[1765949980114,1.44896978,86391.0,86390.0,1.0518779]
[1765949980425,0.02869978,86391.0,86390.0,1.0518779]
[1765949980627,0.02969978,86391.0,86390.0,1.0518779]
[1765949982321,0.02869978,86391.0,86390.0,1.0518779]
[1765949982527,0.02969978,86391.0,86390.0,1.0518779]
[1765949983018,0.72380978,86391.0,86390.0,1.0518779]
[1765949983224,0.72380978,86391.0,86390.0,1.0403]
[1765949985843,0.72480978,86391.0,86390.0,1.0403]
[1765949986325,0.72480978,86391.0,86390.0,1.23771]
[1765949986531,0.38603978,86391.0,86390.0,1.23771]
[1765949986735,0.38703978,86391.0,86390.0,1.23771]
[1765949987428,0.02969978,86391.0,86390.0,1.23771]
[1765949989028,0.02869978,86391.0,86390.0,1.23771]
[1765949989225,0.02769978,86391.0,86390.0,1.23771]
[1765949989428,0.06184242,86402.0,86401.0,0.6795]
[1765949989734,0.06184242,86408.0,86402.0,0.6795]
[1765949989937,0.69208242,86409.0,86402.0,0.6795]
[1765949990122,0.06184242,86409.0,86402.0,0.6795]
[1765949990328,0.06184242,86410.0,86402.0,0.6795]
[1765949990733,0.61572,86416.0,86402.0,0.6795]
[1765949990928,0.57144242,86417.0,86402.0,0.6795]
[1765949991128,0.6004558,86417.0,86402.0,0.6795]
[1765949991328,0.5096,86417.0,86402.0,0.6795]
[1765949992035,0.0021737,86403.0,86402.0,0.6795]
[1765949992529,0.0041737,86403.0,86402.0,0.6795]
[1765949993349,0.0021737,86403.0,86402.0,0.6815]
[1765949994535,0.35965435,86418.0,86417.0,0.6910743]
[1765949994732,0.92823159,86430.0,86429.0,0.6795]
[1765949994938,0.79334435,86430.0,86429.0,0.6795]
[1765949995433,0.82295218,86430.0,86429.0,0.6795]
[1765949995634,0.72471783,86430.0,86429.0,0.6795]
[1765949996130,0.72671783,86430.0,86429.0,0.69759674]
[1765949996726,0.92263783,86430.0,86429.0,0.69759674]
[1765949996928,0.92463783,86430.0,86429.0,0.69759674]
[1765949997236,0.92463783,86430.0,86429.0,0.6795]
[1765949997437,0.72671783,86430.0,86429.0,0.6795]
[1765949997628,0.72771783,86430.0,86429.0,0.6795]
[1765949997922,0.69811,86430.0,86429.0,0.6910727]
[1765949998127,0.69811,86430.0,86429.0,0.70916886]
[1765949998638,0.001,86430.0,86429.0,0.70916886]
[1765949998933,0.69711,86430.0,86429.0,0.70916886]
[1765949999235,0.89203,86430.0,86429.0,0.69759616]
[1765949999531,0.69511,86426.0,86425.0,1.0403]
[1765949999737,0.69511,86426.0,86425.0,1.06996946]
[1765950000539,1.0462223,86437.0,86436.0,0.6795]
[1765950001032,0.69511,86434.0,86433.0,0.3608]
[1765950001238,0.69511,86427.0,86426.0,1.0403]
[1765950001437,0.69511,86427.0,86426.0,1.05839578]
[1765950001836,0.69511,86436.0,86435.0,0.6795]
[1765950002035,0.72236397,86436.0,86435.0,0.6795]
[1765950002239,0.91828397,86436.0,86435.0,0.6795]
[1765950002636,0.69511,86427.0,86426.0,0.3608]
[1765950003029,0.69511,86422.0,86410.0,0.0115752]
[1765950003234,0.72237342,86422.0,86408.0,0.3608]
[1765950003839,0.69511,86409.0,86408.0,0.3608]
[1765950004442,0.69511,86409.0,86408.0,0.71337]
[1765950004927,0.69511,86409.0,86408.0,1.05523]
[1765950006542,0.69511,86409.0,86408.0,0.3608]
[1765950006741,0.69611,86409.0,86408.0,0.3608]
[1765950007432,0.69611,86409.0,86400.0,0.36097359]
[1765950007433,0.86532,86401.0,86400.0,0.36097359]
[1765950007945,0.89258788,86401.0,86400.0,0.00017359]
[1765950008133,0.69922788,86401.0,86400.0,0.68037359]
[1765950008539,0.69922788,86401.0,86400.0,0.68137359]
[1765950008841,0.90027788,86401.0,86400.0,0.68237359]
[1765950009426,0.90027788,86401.0,86400.0,0.00217359]
[1765950009631,0.90027788,86401.0,86400.0,0.00117359]
[1765950009935,0.90027788,86401.0,86400.0,0.00217359]
[1765950010136,0.90027788,86401.0,86400.0,0.00117359]
[1765950010937,0.90027788,86401.0,86400.0,0.00217359]
[1765950011532,0.90027788,86401.0,86400.0,0.00117359]
[1765950011727,0.90027788,86401.0,86400.0,0.33951359]
[1765950011944,0.90027788,86401.0,86400.0,0.00117359]
[1765950012137,0.90027788,86401.0,86400.0,0.33951359]
[1765950012333,0.37098788,86401.0,86400.0,0.68137359]
[1765950012535,0.69922788,86401.0,86400.0,0.68137359]
[1765950012739,1.39784,86401.0,86400.0,0.68137359]
[1765950013146,1.39784,86401.0,86400.0,0.68037359]
[1765950013334,1.42510944,86401.0,86400.0,0.68037359]
[1765950013734,1.42510944,86401.0,86400.0,0.68137359]
[1765950014038,0.02888566,86409.0,86400.0,0.68137359]
[1765950014039,0.70084566,86409.0,86408.0,0.6917755]
[1765950014233,1.42510832,86409.0,86408.0,0.9058755]
[1765950014834,0.02726832,86409.0,86408.0,0.9058755]
[1765950015036,0.70068347,86417.0,86416.0,0.6802]
[1765950015240,1.09759663,86417.0,86416.0,0.6802]
[1765950015835,1.09759663,86417.0,86414.0,0.3608]
[1765950015836,0.87301,86415.0,86414.0,0.3608]
[1765950016036,0.90028316,86415.0,86414.0,0.3608]
[1765950016335,0.90028316,86415.0,86414.0,1.041]
[1765950016935,0.90028316,86415.0,86414.0,0.3608]
[1765950017134,0.87301,86408.0,86407.0,0.3608]
[1765950017336,0.90028316,86408.0,86407.0,0.69914]
[1765950017540,0.90028316,86408.0,86407.0,0.3608]
[1765950019037,0.90028316,86408.0,86407.0,1.041]
[1765950019437,1.62616316,86408.0,86407.0,1.041]
[1765950020542,1.62616316,86408.0,86407.0,0.3608]
[1765950021243,1.62616316,86408.0,86407.0,0.69914]
[1765950022644,1.62616316,86408.0,86407.0,1.041]
[1765950022942,1.42511316,86408.0,86407.0,1.041]
[1765950025649,0.02727316,86408.0,86407.0,1.041]
[1765950025848,0.02872347,86417.0,86415.0,0.6802]
[1765950025849,0.67196,86416.0,86415.0,0.6802]
[1765950026051,1.42525597,86416.0,86415.0,0.6802]
[1765950026445,0.02745597,86416.0,86415.0,1.67319836]
[1765950026647,0.40556242,86450.0,86449.0,0.6802]
[1765950026947,1.3978,86450.0,86449.0,0.6802]
[1765950027649,0.72584,86450.0,86449.0,0.6802]
[1765950027842,0.72584,86450.0,86449.0,1.041]
[1765950028040,0.67444687,86458.0,86457.0,0.6802]
[1765950029248,0.67944687,86458.0,86457.0,0.6802]
[1765950029444,0.68444687,86458.0,86457.0,1.041]
[1765950030248,0.68444687,86458.0,86457.0,0.3608]
[1765950032553,0.67944687,86458.0,86457.0,0.3608]
[1765950032754,0.68144687,86458.0,86457.0,0.3608]
[1765950033055,0.67844687,86458.0,86457.0,0.3608]
[1765950035252,0.69924,86451.0,86450.0,0.95]
[1765950035451,1.42484,86451.0,86450.0,0.95]
[1765950035653,0.69924,86450.0,86449.0,0.3608]
[1765950035957,0.69924,86450.0,86449.0,1.01409]
[1765950038149,0.70124,86450.0,86449.0,1.01409]
[1765950038361,0.002,86450.0,86449.0,1.01409]
[1765950040454,0.002,86450.0,86449.0,1.02566]
[1765950042956,0.0018264,86450.0,86449.0,1.02566]
[1765950043263,0.68470687,86458.0,86457.0,0.9264289]
[1765950043455,0.68470687,86458.0,86457.0,1.2872289]
[1765950044461,0.68670687,86458.0,86457.0,1.2872289]
[1765950044959,0.68870687,86458.0,86457.0,1.2872289]
[1765950045353,0.36342687,86458.0,86457.0,1.2872289]
[1765950046360,0.68870687,86458.0,86457.0,1.06504]
[1765950048362,0.68870687,86458.0,86457.0,1.27566]
[1765950049867,0.36342687,86458.0,86457.0,1.27566]
[1765950051458,0.00648687,86458.0,86457.0,1.27566]
[1765950051665,0.88327,86480.0,86479.0,0.70424]
[1765950051864,1.63592356,86480.0,86479.0,0.70424]
[1765950052360,1.66461515,86480.0,86479.0,0.70424]
[1765950052764,1.66961515,86480.0,86479.0,0.70424]
[1765950053160,1.43987356,86480.0,86479.0,0.70424]
[1765950053365,0.68222,86472.0,86471.0,1.06521348]
[1765950053566,0.70947356,86472.0,86471.0,0.36097348]
[1765950053761,0.70947356,86472.0,86471.0,0.71893348]
[1765950054466,0.71147356,86472.0,86471.0,0.36097348]
[1765950054965,0.9177052,86472.0,86471.0,0.71893348]
[1765950055366,0.7109252,86472.0,86471.0,1.06521348]
[1765950055566,0.7129252,86472.0,86471.0,1.06521348]
[1765950055880,0.0307052,86472.0,86471.0,1.06521348]
[1765950056164,0.0307052,86472.0,86471.0,1.08329971]
[1765950056361,0.0307052,86472.0,86471.0,1.06521348]
[1765950057672,0.0297052,86472.0,86471.0,1.06521348]
[1765950058359,0.0277052,86472.0,86471.0,1.06521348]
[1765950058567,0.3866452,86472.0,86471.0,1.06521348]
[1765950058765,0.9187052,86472.0,86471.0,1.06521348]
[1765950059169,0.9187052,86472.0,86471.0,0.36097348]
[1765950059669,0.9187052,86472.0,86471.0,0.00017348]
[1765950059973,0.98054762,86472.0,86471.0,0.00017348]
[1765950060268,0.9187052,86472.0,86471.0,0.00017348]
[1765950061165,0.98043678,86472.0,86471.0,0.00017348]
[1765950061367,0.9187052,86472.0,86471.0,0.00017348]
[1765950061573,0.889,86464.0,86463.0,0.3608]
[1765950061868,0.9157052,86464.0,86463.0,0.3608]
[1765950062559,0.97743788,86464.0,86463.0,0.3608]
[1765950062766,0.68222,86456.0,86455.0,1.06521348]
[1765950062965,0.74512351,86464.0,86463.0,0.70424]
[1765950063268,1.17183418,86464.0,86463.0,1.06504]
[1765950063468,1.11010415,86464.0,86463.0,1.06504]
[1765950064067,1.11110415,86464.0,86463.0,1.06504]
[1765950065371,1.10910415,86464.0,86463.0,1.06504]
[1765950065578,1.11010415,86464.0,86463.0,1.06504]
[1765950067767,0.75316415,86464.0,86463.0,1.06504]
[1765950067975,0.75216415,86464.0,86463.0,1.06504]
[1765950068177,0.75316415,86464.0,86463.0,1.06504]
[1765950069380,1.08206415,86464.0,86463.0,1.06504]
[1765950070672,0.75316415,86464.0,86463.0,1.06504]
[1765950071070,1.41659415,86464.0,86463.0,1.06504]
[1765950071272,0.69135415,86464.0,86463.0,1.06504]
[1765950072478,0.69135415,86464.0,86463.0,0.3608]
[1765950072479,0.89563415,86464.0,86463.0,0.3608]
[1765950073381,0.89563415,86464.0,86463.0,0.70572]
[1765950073884,0.89563415,86464.0,86463.0,1.05837]
[1765950075369,0.89563415,86464.0,86463.0,0.70572]
[1765950075575,0.89563415,86464.0,86463.0,0.34492]
[1765950075872,0.89559147,86464.0,86463.0,0.69757]
[1765950076476,0.02788147,86464.0,86463.0,0.69757]
[1765950077786,0.69131147,86464.0,86463.0,0.69757]
[1765950078483,0.79345147,86464.0,86463.0,0.34492]
[1765950079271,0.79345147,86464.0,86463.0,0.69757]
[1765950079682,0.69131147,86464.0,86463.0,0.69757]
[1765950079984,0.02788147,86464.0,86463.0,0.69757]
[1765950081277,0.02788147,86464.0,86463.0,0.7091381]
[1765950082277,0.66343,86484.0,86483.0,0.69757]
[1765950082583,0.69015805,86484.0,86483.0,0.69757]
[1765950083683,0.69515805,86484.0,86483.0,0.69757]
[1765950086880,0.03172805,86484.0,86483.0,0.69757]
[1765950087472,0.03190303,86484.0,86483.0,0.69757]
[1765950088877,0.03190303,86484.0,86483.0,1.05837]
[1765950089789,0.69533303,86484.0,86483.0,1.05837]
[1765950092883,0.69533303,86484.0,86483.0,0.3608]
[1765950093283,0.66343,86477.0,86476.0,0.3608]
[1765950093482,0.66343,86476.0,86475.0,0.00017348]
[1765950093688,0.69033303,86476.0,86475.0,0.00017348]
[1765950095295,0.69033303,86476.0,86475.0,0.69819348]
[1765950095793,0.69133303,86476.0,86475.0,0.69819348]
[1765950096287,0.69333303,86476.0,86475.0,0.69819348]
[1765950098090,0.02990303,86476.0,86475.0,0.69819348]
[1765950098491,0.71707303,86476.0,86475.0,0.69819348]
[1765950100993,0.36021303,86476.0,86475.0,0.69819348]
[1765950101694,0.02990303,86476.0,86475.0,0.69819348]
[1765950102990,0.003,86476.0,86475.0,0.69819348]
[1765950108287,0.69017,86476.0,86475.0,0.69819348]
[1765950110701,0.71709335,86476.0,86475.0,0.69819348]
[1765950111490,0.71709335,86476.0,86475.0,0.00017348]
[1765950113097,0.71709335,86476.0,86475.0,0.66306348]
[1765950114800,0.71709335,86476.0,86475.0,0.00017348]
[1765950115203,0.71709335,86476.0,86475.0,0.66306348]
[1765950119709,0.02992335,86476.0,86475.0,0.66306348]
[1765950122106,0.71709335,86476.0,86475.0,0.66306348]
[1765950128811,0.7169727,86476.0,86475.0,0.66306348]
[1765950129214,0.7169727,86476.0,86475.0,0.00017348]
[1765950133711,1.4418527,86476.0,86475.0,0.00017348]
[1765950137915,1.4418527,86476.0,86475.0,0.67957348]
[1765950145321,1.4418527,86476.0,86475.0,0.00017348]
[1765950149331,1.4418527,86476.0,86475.0,0.35525348]